[Event "British KO-ch Pre 2019"]
[Site "London"]
[Date "2019.11.30"]
[Round "4.7"]
[White "Head, Louise"]
[Black "Pein, Jonathan"]
[Result "1-0"]
[ECO "A50"]
[WhiteElo "2100"]
[BlackElo "2151"]
[Annotator "NA"]
[PlyCount "97"]
[EventDate "2019.11.30"]
[EventType "k.o."]
[EventCountry "ENG"]
[SourceTitle "playchess.com"]
[Source "ChessBase"]
[SourceQuality "1"]
[TimeControl "600+5"]

1. d4 {[%emt 0:00:00]} Nf6 {[%emt 0:00:00]} 2. c4 {[%emt 0:00:00]} b6 {[%emt 0:00:00]} 3. Nc3 {[%emt 0:00:10]} Bb7 {[%emt 0:00:00]} 4. Nf3 {[%emt 0:00:11]} Ne4 {[%emt 0:00:01]} 5. Nxe4 {[%emt 0:00:18]} Bxe4 {[%emt 0:00:01]} 6. Nd2 {[%emt 0:00:13]} Bb7 {[%emt 0:00:00]} 7. Qc2 {[%emt 0:00:09]} g6 {[%emt 0:00:01]} 8. b3 {[%emt 0:00:37]} Bg7 {[%emt 0:00:09]} 9. Bb2 {[%emt 0:00:01]} O-O {[%emt 0:00:38]} 10. e4 {[%emt 0:00:04]} Nc6 {[%emt 0:00:01]} 11. Nf3 {[%emt 0:01:02]} Nb4 {[%emt 0:00:17]} 12. Qd2 {[%emt 0:00:29]} a5 {[%emt 0:00:50]} 13. a3 {[%emt 0:00:06]} Na6 {[%emt 0:00:02]} 14. Bd3 {[%emt 0:00:03]} d6 {[%emt 0:00:10]} 15. O-O {[%emt 0:00:14]} e5 {[%emt 0:01:01]} 16. Bc2 {[%emt 0:01:03]} exd4 {[%emt 0:00:36]} 17. Bxd4 {[%emt 0:00:04]} Nc5 {[%emt 0:00:04]} 18. Bxg7 Kxg7 {[%emt 0:00:01]} 19. Rfe1 {[%emt 0:00:30]} Re8 {[%emt 0:00:14]} 20. Qd4+ {[%emt 0:00:18]} Qf6 {[%emt 0:00:07]} 21. Qxf6+ Kxf6 {[%emt 0:00:02]} 22. Nd2 {[%emt 0:00:32]} Re7 {[%emt 0:00:19]} 23. f3 {[%emt 0:00:04]} Kg7 {[%emt 0:00:40]} 24. Nf1 {[%emt 0:00:27]} Rae8 {[%emt 0:01:14]} 25. Kf2 {[%emt 0:00:02]} Ne6 {[%emt 0:00:55]} 26. Rad1 {[%emt 0:00:57]} h5 {[%emt 0:00:50]} 27. Ne3 {[%emt 0:00:11]} f6 {[%emt 0:01:09]} 28. Rd2 {[%emt 0:01:04]} Kf7 {[%emt 0:00:05]} 29. Nd5 {[%emt 0:01:02]} Bxd5 {[%emt 0:00:16]} 30. Rxd5 {[%emt 0:00:12]} Nf4 {[%emt 0:00:47]} 31. Rdd1 {[%emt 0:00:24]} g5 {[%emt 0:00:21]} 32. g3 {[%emt 0:00:15]} Ne6 {[%emt 0:00:17]} 33. h3 {[%emt 0:00:21]} Nc5 {[%emt 0:00:46]} 34. b4 {[%emt 0:00:20]} axb4 {[%emt 0:00:14]} 35. axb4 {[%emt 0:00:01]} Na6 {[%emt 0:00:02]} 36. Rb1 {[%emt 0:00:16]} Nb8 {[%emt 0:00:07]} 37. Bb3 {[%emt 0:00:07]} Kg7 38. Rbc1 {[%emt 0:00:06]} Nc6 {[%emt 0:00:04]} 39. Ba4 {[%emt 0:00:04]} Nxb4 {[%emt 0:00:05]} 40. Bxe8 {[%emt 0:00:07]} Nd3+ {[%emt 0:00:02]} 41. Ke3 {[%emt 0:00:08]} Nxe1 {[%emt 0:00:05]} 42. Bxh5 {[%emt 0:00:04]} f5 {[%emt 0:00:19]} 43. Rxe1 {[%emt 0:00:11]} Kh6 44. g4 {[%emt 0:00:00]} c6 {[%emt 0:00:10]} 45. Rd1 {[%emt 0:00:00]} fxe4 {[%emt 0:00:07]} 46. Rxd6+ {[%emt 0:00:00]} Kg7 {[%emt 0:00:02]} 47. fxe4 b5 48. Rxc6 {[%emt 0:00:05]} bxc4 49. Rxc4 {[%emt 0:00:02]} 1-0

[Event "British KO-ch Pre 2019"]
[Site "London"]
[Date "2019.11.30"]
[Round "4.8"]
[White "Kalaiyalahan, Akshaya"]
[Black "Toma, Katarzyna"]
[Result "0-1"]
[ECO "D77"]
[WhiteElo "2154"]
[BlackElo "2272"]
[Annotator "NA"]
[PlyCount "46"]
[EventDate "2019.11.30"]
[EventType "k.o."]
[EventCountry "ENG"]
[SourceTitle "playchess.com"]
[Source "ChessBase"]
[SourceQuality "1"]
[TimeControl "600+5"]

1. Nf3 {[%emt 0:00:00]} Nf6 {[%emt 0:00:00]} 2. g3 {[%emt 0:00:00]} g6 {[%emt 0:00:00]} 3. Bg2 {[%emt 0:00:00]} Bg7 {[%emt 0:00:00]} 4. O-O {[%emt 0:00:02]} O-O {[%emt 0:00:00]} 5. d4 {[%emt 0:00:03]} d5 {[%emt 0:00:02]} 6. c4 {[%emt 0:00:18]} dxc4 {[%emt 0:00:02]} 7. Na3 {[%emt 0:00:17]} c5 {[%emt 0:00:22]} 8. Nxc4 {[%emt 0:01:12]} Be6 {[%emt 0:00:50]} 9. Ne3 {[%emt 0:00:46]} Nc6 {[%emt 0:01:59]} 10. dxc5 {[%emt 0:00:56]} Qa5 {[%emt 0:00:44]} 11. Ng5 {[%emt 0:04:02]} Bd7 {[%emt 0:00:25]} 12. Ne4 {[%emt 0:00:22]} Rfd8 {[%emt 0:00:28]} 13. Nxf6+ {[%emt 0:00:04]} Bxf6 {[%emt 0:00:01]} 14. Qe1 {[%emt 0:01:25]} Qxc5 {[%emt 0:00:16]} 15. Nd5 {[%emt 0:00:26]} Bg7 {[%emt 0:02:38]} 16. Be3 {[%emt 0:00:13]} Nd4 {[%emt 0:00:34]} 17. Rc1 {[%emt 0:00:34]} Qd6 {[%emt 0:00:08]} 18. Bf4 {[%emt 0:00:32]} e5 {[%emt 0:00:26]} 19. Bd2 {[%emt 0:00:07]} Bb5 {[%emt 0:00:53]} 20. Nc3 {[%emt 0:00:10]} Nxe2+ {[%emt 0:00:21]} 21. Nxe2 {[%emt 0:00:03]} Qxd2 {[%emt 0:00:02]} 22. Nc3 {[%emt 0:00:10]} Bxf1 {[%emt 0:00:12]} 23. Qxf1 {[%emt 0:00:03]} Rac8 {[%emt 0:00:16]} 0-1

[Event "British KO-ch Pre 2019"]
[Site "London"]
[Date "2019.11.30"]
[Round "5.1"]
[White "Harvey, Marcus R"]
[Black "Wadsworth, Matthew J"]
[Result "1-0"]
[ECO "A07"]
[WhiteElo "2405"]
[BlackElo "2401"]
[Annotator "NA"]
[PlyCount "93"]
[EventDate "2019.11.30"]
[EventType "k.o."]
[EventCountry "ENG"]
[SourceTitle "playchess.com"]
[Source "ChessBase"]
[SourceQuality "1"]
[TimeControl "600+5"]

1. Nf3 {[%emt 0:00:00]} d5 {[%emt 0:00:00]} 2. g3 {[%emt 0:00:06]} Nf6 {[%emt 0:00:05]} 3. Bg2 {[%emt 0:00:00]} c6 {[%emt 0:00:01]} 4. O-O {[%emt 0:00:02]} Bf5 {[%emt 0:00:12]} 5. d3 {[%emt 0:00:01]} h6 {[%emt 0:00:05]} 6. Nbd2 {[%emt 0:00:09]} e6 {[%emt 0:00:13]} 7. c3 {[%emt 0:00:06]} Be7 {[%emt 0:00:08]} 8. Qb3 {[%emt 0:00:18]} Qb6 {[%emt 0:00:09]} 9. a4 {[%emt 0:00:09]} Nbd7 {[%emt 0:00:52]} 10. a5 {[%emt 0:00:01]} Qxb3 11. Nxb3 {[%emt 0:00:01]} a6 {[%emt 0:00:07]} 12. Nfd2 {[%emt 0:00:50]} Nc5 {[%emt 0:00:36]} 13. Nxc5 Bxc5 {[%emt 0:00:03]} 14. e4 {[%emt 0:00:12]} Bh7 {[%emt 0:00:19]} 15. d4 {[%emt 0:00:12]} Be7 {[%emt 0:00:32]} 16. e5 {[%emt 0:00:12]} Nd7 {[%emt 0:00:04]} 17. b4 {[%emt 0:00:03]} Bd3 {[%emt 0:00:34]} 18. Re1 {[%emt 0:00:01]} g5 {[%emt 0:00:26]} 19. Nb3 {[%emt 0:00:33]} Bc4 {[%emt 0:00:23]} 20. Rb1 {[%emt 0:00:09]} g4 {[%emt 0:00:47]} 21. h3 {[%emt 0:00:17]} h5 {[%emt 0:00:08]} 22. h4 {[%emt 0:00:40]} O-O-O {[%emt 0:00:19]} 23. Bf1 {[%emt 0:00:44]} Bxb3 24. Rxb3 {[%emt 0:00:02]} Nf8 {[%emt 0:00:16]} 25. Bd3 {[%emt 0:00:12]} Ng6 {[%emt 0:00:23]} 26. Kf1 {[%emt 0:00:17]} Rdg8 {[%emt 0:00:20]} 27. Rb2 {[%emt 0:00:10]} Kd7 {[%emt 0:00:31]} 28. Rbe2 {[%emt 0:00:12]} Rg7 {[%emt 0:00:15]} 29. Re3 {[%emt 0:00:12]} Rgg8 {[%emt 0:00:32]} 30. Ke2 {[%emt 0:00:21]} Rg7 {[%emt 0:00:49]} 31. Kd1 {[%emt 0:00:06]} Ke8 {[%emt 0:00:31]} 32. Bd2 {[%emt 0:00:06]} Rgg8 {[%emt 0:00:14]} 33. f4 {[%emt 0:00:34]} Nxf4 {[%emt 0:01:09]} 34. gxf4 Bxh4 {[%emt 0:00:01]} 35. Rf1 {[%emt 0:00:31]} Be7 {[%emt 0:00:41]} 36. Rh1 {[%emt 0:00:32]} h4 {[%emt 0:00:02]} 37. Be1 {[%emt 0:00:18]} g3 {[%emt 0:00:14]} 38. Rg1 {[%emt 0:01:05]} Rg4 {[%emt 0:00:27]} 39. Rf3 {[%emt 0:00:17]} Rhg8 {[%emt 0:00:17]} 40. Bf1 {[%emt 0:00:06]} g2 {[%emt 0:00:20]} 41. Be2 {[%emt 0:00:15]} Kf8 {[%emt 0:00:01]} 42. Kd2 {[%emt 0:00:20]} Ke8 {[%emt 0:00:08]} 43. Ke3 {[%emt 0:00:06]} Bf8 {[%emt 0:00:07]} 44. Rh3 {[%emt 0:00:06]} R4g6 {[%emt 0:00:07]} 45. Rxh4 {[%emt 0:00:14]} Bh6 {[%emt 0:00:01]} 46. Bh5 {[%emt 0:00:09]} R6g7 {[%emt 0:00:11]} 47. Bxf7+ {[%emt 0:00:04]} 1-0

[Event "British KO-ch Pre 2019"]
[Site "London"]
[Date "2019.11.30"]
[Round "5.3"]
[White "Clarke, Brandon G I"]
[Black "Merry, Alan B"]
[Result "1-0"]
[ECO "C18"]
[WhiteElo "2431"]
[BlackElo "2426"]
[Annotator "NA"]
[PlyCount "75"]
[EventDate "2019.11.30"]
[EventType "k.o."]
[EventCountry "ENG"]
[SourceTitle "playchess.com"]
[Source "ChessBase"]
[SourceQuality "1"]
[TimeControl "600+5"]

1. e4 {[%emt 0:00:00]} e6 {[%emt 0:00:00]} 2. d4 {[%emt 0:00:00]} d5 {[%emt 0:00:00]} 3. Nc3 {[%emt 0:00:00]} Bb4 {[%emt 0:00:00]} 4. e5 {[%emt 0:00:00]} c5 {[%emt 0:00:00]} 5. a3 {[%emt 0:00:01]} Bxc3+ {[%emt 0:00:00]} 6. bxc3 {[%emt 0:00:00]} Qa5 {[%emt 0:00:01]} 7. Bd2 {[%emt 0:00:01]} Qa4 {[%emt 0:00:01]} 8. Qb1 {[%emt 0:00:09]} c4 {[%emt 0:00:02]} 9. Nh3 {[%emt 0:00:02]} Nc6 {[%emt 0:00:04]} 10. Nf4 {[%emt 0:00:02]} g6 {[%emt 0:00:14]} 11. Be2 {[%emt 0:00:29]} Nge7 {[%emt 0:00:04]} 12. g4 {[%emt 0:00:17]} Bd7 {[%emt 0:00:05]} 13. h4 {[%emt 0:00:43]} O-O-O {[%emt 0:00:12]} 14. Nh3 {[%emt 0:00:49]} h6 {[%emt 0:00:20]} 15. Qc1 {[%emt 0:00:17]} Ng8 {[%emt 0:00:18]} 16. h5 {[%emt 0:00:31]} gxh5 {[%emt 0:00:18]} 17. gxh5 {[%emt 0:00:11]} f6 {[%emt 0:00:10]} 18. Nf4 {[%emt 0:01:07]} fxe5 {[%emt 0:00:20]} 19. Ng6 {[%emt 0:00:01]} Rh7 {[%emt 0:00:02]} 20. Nxe5 {[%emt 0:00:54]} Nf6 {[%emt 0:00:59]} 21. f3 {[%emt 0:00:52]} Be8 {[%emt 0:00:59]} 22. Bxh6 {[%emt 0:00:49]} Nxe5 {[%emt 0:01:02]} 23. dxe5 {[%emt 0:00:01]} Nxh5 {[%emt 0:00:01]} 24. Bg5 {[%emt 0:00:29]} Rdd7 {[%emt 0:00:08]} 25. Kf2 {[%emt 0:00:13]} Bg6 {[%emt 0:00:44]} 26. Ra2 {[%emt 0:01:21]} Ng7 {[%emt 0:00:42]} 27. Rxh7 Bxh7 {[%emt 0:00:01]} 28. Qh1 {[%emt 0:00:30]} Bxc2 {[%emt 0:01:04]} 29. Qh8+ {[%emt 0:00:19]} Kc7 {[%emt 0:00:02]} 30. Qf8 {[%emt 0:00:29]} Bb3 {[%emt 0:00:52]} 31. Ra1 {[%emt 0:00:08]} Qa5 {[%emt 0:00:05]} 32. Rh1 {[%emt 0:01:02]} b6 {[%emt 0:01:42]} 33. Qa8 {[%emt 0:00:33]} Qa6 {[%emt 0:01:16]} 34. Rh8 {[%emt 0:00:02]} Qb7 {[%emt 0:00:05]} 35. Qg8 {[%emt 0:00:07]} Kc6 {[%emt 0:00:21]} 36. Bf6 {[%emt 0:00:11]} Kb5 {[%emt 0:00:26]} 37. Rh7 {[%emt 0:00:01]} Ne8 {[%emt 0:00:14]} 38. Qxe8 {[%emt 0:00:02]} 1-0

[Event "British KO-ch Pre 2019"]
[Site "London"]
[Date "2019.11.30"]
[Round "5.4"]
[White "Haria, Ravi"]
[Black "Claridge-Hansen, William"]
[Result "1-0"]
[ECO "A40"]
[WhiteElo "2451"]
[BlackElo "2290"]
[Annotator "ChessBase"]
[PlyCount "41"]
[EventDate "2019.11.30"]
[EventType "k.o."]
[EventCountry "ENG"]
[SourceTitle "playchess.com"]
[Source "ChessBase"]
[SourceQuality "1"]
[TimeControl "600+5"]

1. Nf3 {[%emt 0:00:00]} c5 {[%emt 0:00:00]} 2. g3 {[%emt 0:00:07]} g6 {[%emt 0:00:02]} 3. c3 {[%emt 0:00:06]} Bg7 {[%emt 0:00:30]} 4. d4 {[%emt 0:00:01]} cxd4 {[%emt 0:00:11]} 5. cxd4 {[%emt 0:00:02]} b6 {[%emt 0:00:34]} 6. Bg2 {[%emt 0:00:05]} Bb7 {[%emt 0:00:01]} 7. O-O {[%emt 0:00:36]} d6 {[%emt 0:00:23]} 8. Qb3 {[%emt 0:00:52]} e6 {[%emt 0:00:20]} 9. Nc3 {[%emt 0:00:33]} Ne7 {[%emt 0:00:07]} 10. e4 {[%emt 0:00:19]} a6 {[%emt 0:00:13]} 11. Be3 {[%emt 0:00:13]} Nd7 {[%emt 0:00:20]} 12. Nd2 {[%emt 0:00:18]} O-O {[%emt 0:00:38]} 13. Nc4 {[%emt 0:00:35]} Qc7 {[%emt 0:00:23]} 14. Rac1 {[%emt 0:02:02]} b5 {[%emt 0:00:29]} 15. Nd2 {[%emt 0:00:14]} Qa5 {[%emt 0:00:56]} 16. a4 {[%emt 0:00:34]} bxa4 {[%emt 0:02:23]} 17. Qxb7 {[%emt 0:00:30]} Rfd8 {[%emt 0:01:11]} 18. Nc4 {[%emt 0:00:04]} Qh5 {[%emt 0:00:10]} 19. Nxd6 {[%emt 0:00:35]} Nf6 {[%emt 0:00:35]} 20. e5 {[%emt 0:00:26]} Ng4 {[%emt 0:00:47]} 21. h3 {[%emt 0:00:12]} 1-0

[Event "British KO-ch Pre 2019"]
[Site "London"]
[Date "2019.11.30"]
[Round "5.5"]
[White "Head, Louise"]
[Black "Taylor, Adam C"]
[Result "0-1"]
[ECO "A57"]
[WhiteElo "2100"]
[BlackElo "2371"]
[Annotator "NA"]
[PlyCount "130"]
[EventDate "2019.11.30"]
[EventType "k.o."]
[EventCountry "ENG"]
[SourceTitle "playchess.com"]
[Source "ChessBase"]
[SourceQuality "1"]
[TimeControl "600+5"]

1. d4 {[%emt 0:00:00]} Nf6 {[%emt 0:00:00]} 2. c4 {[%emt 0:00:00]} c5 {[%emt 0:00:00]} 3. d5 {[%emt 0:00:00]} b5 {[%emt 0:00:00]} 4. cxb5 {[%emt 0:00:03]} a6 {[%emt 0:00:00]} 5. b6 {[%emt 0:00:01]} d6 {[%emt 0:00:00]} 6. Nc3 {[%emt 0:00:02]} Nbd7 {[%emt 0:00:00]} 7. e4 {[%emt 0:00:01]} g6 {[%emt 0:00:00]} 8. Nf3 {[%emt 0:00:02]} Rb8 {[%emt 0:00:01]} 9. Be2 {[%emt 0:00:03]} Bg7 {[%emt 0:00:01]} 10. O-O {[%emt 0:00:04]} O-O {[%emt 0:00:02]} 11. a4 {[%emt 0:00:09]} Qxb6 {[%emt 0:00:01]} 12. Nd2 {[%emt 0:00:26]} Ne5 {[%emt 0:00:24]} 13. Nc4 {[%emt 0:00:35]} Nxc4 {[%emt 0:00:03]} 14. Bxc4 {[%emt 0:00:01]} Nd7 {[%emt 0:00:13]} 15. Qc2 {[%emt 0:00:19]} Qb4 {[%emt 0:00:45]} 16. Be2 {[%emt 0:00:16]} f5 {[%emt 0:00:23]} 17. exf5 Rxf5 {[%emt 0:00:04]} 18. a5 {[%emt 0:01:12]} Ne5 {[%emt 0:00:57]} 19. Ra4 {[%emt 0:00:17]} Qb3 {[%emt 0:00:21]} 20. Qxb3 Rxb3 {[%emt 0:00:02]} 21. f4 {[%emt 0:00:23]} Nd7 {[%emt 0:00:19]} 22. Bd1 {[%emt 0:00:39]} Rb8 {[%emt 0:01:02]} 23. Bg4 {[%emt 0:00:05]} Rf8 {[%emt 0:00:10]} 24. Be6+ {[%emt 0:00:11]} Kh8 {[%emt 0:00:02]} 25. f5 {[%emt 0:00:26]} Bd4+ {[%emt 0:00:10]} 26. Kh1 {[%emt 0:00:03]} Ne5 {[%emt 0:00:14]} 27. Bh6 {[%emt 0:00:31]} Bxe6 {[%emt 0:02:54]} 28. Bxf8 {[%emt 0:00:13]} Bd7 {[%emt 0:00:03]} 29. Bxe7 {[%emt 0:01:13]} Bxa4 {[%emt 0:01:19]} 30. Nxa4 {[%emt 0:01:01]} Ng4 {[%emt 0:00:10]} 31. h3 {[%emt 0:00:25]} Ne3 {[%emt 0:00:02]} 32. Re1 {[%emt 0:01:17]} Nxf5 {[%emt 0:00:02]} 33. Bg5 {[%emt 0:00:42]} Ng3+ {[%emt 0:00:46]} 34. Kh2 {[%emt 0:00:05]} Nf5 {[%emt 0:00:05]} 35. g4 {[%emt 0:00:26]} Ng7 {[%emt 0:00:28]} 36. Nb6 {[%emt 0:00:18]} Bxb2 {[%emt 0:00:38]} 37. Bf4 {[%emt 0:00:27]} Bc3 {[%emt 0:00:16]} 38. Bxd6 {[%emt 0:00:25]} Rd8 {[%emt 0:00:34]} 39. Bc7 {[%emt 0:00:03]} Bxe1 {[%emt 0:00:08]} 40. Bxd8 {[%emt 0:00:03]} Bxa5 {[%emt 0:00:09]} 41. d6 {[%emt 0:00:05]} Ne6 {[%emt 0:00:06]} 42. Bf6+ {[%emt 0:00:07]} Kg8 {[%emt 0:00:01]} 43. Nc4 {[%emt 0:00:11]} Kf7 {[%emt 0:00:16]} 44. Bh4 {[%emt 0:00:19]} Bd8 {[%emt 0:00:10]} 45. Ne5+ {[%emt 0:00:06]} Ke8 {[%emt 0:00:17]} 46. Bf2 {[%emt 0:00:14]} Bf6 {[%emt 0:00:00]} 47. Nc4 {[%emt 0:00:03]} Kd7 {[%emt 0:00:00]} 48. Bg3 {[%emt 0:00:03]} Bc3 {[%emt 0:00:06]} 49. Kg2 {[%emt 0:00:03]} a5 {[%emt 0:00:01]} 50. Kf2 {[%emt 0:00:08]} a4 {[%emt 0:00:01]} 51. Nb6+ {[%emt 0:00:01]} Kc6 {[%emt 0:00:06]} 52. Nxa4 {[%emt 0:00:03]} Bd4+ {[%emt 0:00:01]} 53. Ke2 {[%emt 0:00:07]} Kb5 {[%emt 0:00:03]} 54. Nxc5 Bxc5 {[%emt 0:00:02]} 55. h4 {[%emt 0:00:25]} Kc6 {[%emt 0:00:04]} 56. Kf3 {[%emt 0:00:07]} Bxd6 {[%emt 0:00:06]} 57. Bf2 {[%emt 0:00:01]} Kd5 {[%emt 0:00:02]} 58. Be3 {[%emt 0:00:04]} Nd4+ {[%emt 0:00:16]} 59. Bxd4 Kxd4 {[%emt 0:00:01]} 60. g5 {[%emt 0:00:12]} Ke5 {[%emt 0:00:13]} 61. Kg4 {[%emt 0:00:01]} Ke4 {[%emt 0:00:05]} 62. h5 {[%emt 0:00:02]} Be7 {[%emt 0:00:07]} 63. Kh4 {[%emt 0:00:06]} Kf4 {[%emt 0:00:02]} 64. hxg6 hxg6 {[%emt 0:00:01]} 65. Kh3 {[%emt 0:00:04]} Kxg5 {[%emt 0:00:02]} 0-1

[Event "British KO-ch Pre 2019"]
[Site "London"]
[Date "2019.11.30"]
[Round "5.6"]
[White "Willow, Jonah B"]
[Black "Golding, Alex"]
[Result "1/2-1/2"]
[ECO "C10"]
[WhiteElo "2345"]
[BlackElo "2306"]
[Annotator "NA"]
[PlyCount "232"]
[EventDate "2019.11.30"]
[EventType "k.o."]
[EventCountry "ENG"]
[SourceTitle "playchess.com"]
[Source "ChessBase"]
[SourceQuality "1"]
[TimeControl "600+5"]

1. e4 {[%emt 0:00:00]} e6 {[%emt 0:00:00]} 2. d4 {[%emt 0:00:00]} d5 {[%emt 0:00:00]} 3. Nd2 {[%emt 0:00:00]} dxe4 {[%emt 0:00:00]} 4. Nxe4 {[%emt 0:00:01]} Bd7 {[%emt 0:00:00]} 5. Nf3 {[%emt 0:00:09]} Bc6 {[%emt 0:00:01]} 6. Bd3 {[%emt 0:00:06]} Nd7 {[%emt 0:00:01]} 7. O-O {[%emt 0:00:03]} Ngf6 {[%emt 0:00:02]} 8. Re1 {[%emt 0:00:01]} Bxe4 {[%emt 0:00:34]} 9. Bxe4 Nxe4 {[%emt 0:00:01]} 10. Rxe4 {[%emt 0:00:02]} Nf6 {[%emt 0:00:02]} 11. Re2 {[%emt 0:00:02]} Bd6 {[%emt 0:00:09]} 12. Bg5 {[%emt 0:00:06]} c6 {[%emt 0:00:37]} 13. c4 {[%emt 0:00:18]} h6 {[%emt 0:00:17]} 14. Bxf6 {[%emt 0:00:20]} Qxf6 {[%emt 0:00:02]} 15. d5 {[%emt 0:00:02]} O-O {[%emt 0:02:14]} 16. dxc6 {[%emt 0:00:38]} Rad8 {[%emt 0:00:10]} 17. Qa4 {[%emt 0:01:26]} bxc6 {[%emt 0:00:04]} 18. Qxc6 {[%emt 0:00:10]} Ba3 {[%emt 0:00:25]} 19. Qb7 {[%emt 0:01:04]} Rb8 {[%emt 0:00:08]} 20. Qxa7 {[%emt 0:00:05]} Bxb2 {[%emt 0:00:02]} 21. Rb1 {[%emt 0:00:33]} Be5 {[%emt 0:04:33]} 22. Rxb8 {[%emt 0:00:59]} Rxb8 {[%emt 0:00:14]} 23. Re1 {[%emt 0:00:15]} Rd8 {[%emt 0:00:52]} 24. Qe3 {[%emt 0:00:52]} Bf4 {[%emt 0:00:06]} 25. Qe4 {[%emt 0:00:05]} Bd6 {[%emt 0:00:09]} 26. g3 {[%emt 0:00:15]} Bc5 {[%emt 0:00:04]} 27. Kg2 {[%emt 0:00:30]} Qb2 {[%emt 0:00:05]} 28. Re2 {[%emt 0:00:08]} Qc1 {[%emt 0:00:03]} 29. Qc2 {[%emt 0:02:02]} Qa3 {[%emt 0:00:24]} 30. Ne5 {[%emt 0:00:16]} Rd4 {[%emt 0:00:26]} 31. Nf3 {[%emt 0:00:21]} Rd3 {[%emt 0:00:05]} 32. Ne5 {[%emt 0:00:08]} Qa8+ {[%emt 0:00:07]} 33. f3 {[%emt 0:00:58]} Ra3 {[%emt 0:00:08]} 34. Nd3 {[%emt 0:00:29]} Bd4 {[%emt 0:00:04]} 35. c5 {[%emt 0:00:13]} Rc3 {[%emt 0:00:04]} 36. Qd2 {[%emt 0:00:05]} Qc6 {[%emt 0:00:05]} 37. Kh3 {[%emt 0:00:13]} Qxf3 {[%emt 0:00:03]} 38. Nf4 {[%emt 0:00:06]} Qf1+ {[%emt 0:00:18]} 39. Rg2 {[%emt 0:00:03]} Bf6 {[%emt 0:00:05]} 40. Qe2 {[%emt 0:00:01]} Qb1 {[%emt 0:00:11]} 41. Qg4 {[%emt 0:00:14]} Rxc5 {[%emt 0:00:04]} 42. Nh5 {[%emt 0:00:01]} Qa1 {[%emt 0:00:15]} 43. Rd2 {[%emt 0:00:06]} Qf1+ {[%emt 0:00:02]} 44. Rg2 {[%emt 0:00:01]} Rg5 {[%emt 0:00:07]} 45. Nxf6+ Qxf6 {[%emt 0:00:02]} 46. Qe2 {[%emt 0:00:11]} h5 {[%emt 0:00:12]} 47. Qe4 {[%emt 0:00:04]} h4 {[%emt 0:00:03]} 48. gxh4 {[%emt 0:00:07]} Rxg2 49. Qxg2 {[%emt 0:00:07]} Qf5+ {[%emt 0:00:04]} 50. Kg3 {[%emt 0:00:03]} Qe5+ {[%emt 0:00:02]} 51. Kh3 {[%emt 0:00:04]} Qc3+ {[%emt 0:00:02]} 52. Qg3 {[%emt 0:00:02]} Qb2 {[%emt 0:00:01]} 53. a4 {[%emt 0:00:05]} Qa1 {[%emt 0:00:03]} 54. Qf4 {[%emt 0:00:03]} e5 {[%emt 0:00:04]} 55. Qc4 {[%emt 0:00:02]} Qa3+ {[%emt 0:00:08]} 56. Kg2 {[%emt 0:00:01]} Qb2+ {[%emt 0:00:02]} 57. Kg3 {[%emt 0:00:05]} g6 {[%emt 0:00:06]} 58. Qb5 {[%emt 0:00:09]} Qc3+ {[%emt 0:00:03]} 59. Kg2 {[%emt 0:00:01]} Qd2+ {[%emt 0:00:02]} 60. Kg3 {[%emt 0:00:02]} Qf4+ {[%emt 0:00:01]} 61. Kg2 {[%emt 0:00:01]} e4 {[%emt 0:00:01]} 62. Qe2 {[%emt 0:00:24]} Qxh4 {[%emt 0:00:02]} 63. a5 {[%emt 0:00:00]} Qg5+ {[%emt 0:00:01]} 64. Kh3 {[%emt 0:00:08]} Qxa5 {[%emt 0:00:15]} 65. Qxe4 {[%emt 0:00:01]} Qc3+ {[%emt 0:00:05]} 66. Kg2 {[%emt 0:00:02]} Kg7 {[%emt 0:00:01]} 67. Qe2 {[%emt 0:00:03]} g5 {[%emt 0:00:02]} 68. Qa2 {[%emt 0:00:05]} Qd4 {[%emt 0:00:02]} 69. Qc2 {[%emt 0:00:03]} Qf4 {[%emt 0:00:03]} 70. Qc3+ {[%emt 0:00:02]} Kg6 {[%emt 0:00:03]} 71. Qd3+ {[%emt 0:00:03]} Qf5 {[%emt 0:00:01]} 72. Qd6+ {[%emt 0:00:01]} f6 {[%emt 0:00:02]} 73. Qd8 {[%emt 0:00:11]} Qe4+ {[%emt 0:00:06]} 74. Kg1 {[%emt 0:00:06]} g4 {[%emt 0:00:13]} 75. Qg8+ {[%emt 0:00:17]} Kf5 {[%emt 0:00:03]} 76. Qh7+ {[%emt 0:00:09]} Kf4 {[%emt 0:00:05]} 77. Qc7+ {[%emt 0:00:01]} Qe5 {[%emt 0:00:13]} 78. Qc4+ {[%emt 0:00:11]} Kg5 {[%emt 0:00:04]} 79. Qg8+ {[%emt 0:00:02]} Kf5 {[%emt 0:00:03]} 80. Qc8+ {[%emt 0:00:04]} Kf4 {[%emt 0:00:12]} 81. Qc4+ {[%emt 0:00:01]} Qe4 {[%emt 0:00:01]} 82. Qc7+ {[%emt 0:00:05]} Kg5 {[%emt 0:00:03]} 83. Qg7+ {[%emt 0:00:01]} Qg6 {[%emt 0:00:02]} 84. Qc7 {[%emt 0:00:02]} f5 {[%emt 0:00:06]} 85. Qe5 {[%emt 0:00:04]} Qb6+ {[%emt 0:00:07]} 86. Kg2 {[%emt 0:00:01]} Qc6+ {[%emt 0:00:00]} 87. Kg1 {[%emt 0:00:06]} Qc1+ {[%emt 0:00:02]} 88. Kg2 {[%emt 0:00:02]} Qd2+ {[%emt 0:00:28]} 89. Kg3 {[%emt 0:00:20]} Qd3+ {[%emt 0:00:04]} 90. Kf2 {[%emt 0:00:00]} Qf3+ {[%emt 0:00:06]} 91. Kg1 {[%emt 0:00:03]} Qe4 {[%emt 0:00:07]} 92. Qg7+ {[%emt 0:00:03]} Kf4 {[%emt 0:00:02]} 93. Qc7+ {[%emt 0:00:01]} Kf3 {[%emt 0:00:02]} 94. Qg3+ {[%emt 0:00:03]} Ke2 {[%emt 0:00:02]} 95. Qf2+ {[%emt 0:00:04]} Kd3 {[%emt 0:00:01]} 96. Qf1+ {[%emt 0:00:02]} Kd4 {[%emt 0:00:02]} 97. Qa1+ {[%emt 0:00:01]} Kd5 {[%emt 0:00:18]} 98. Qa8+ {[%emt 0:00:03]} Ke5 {[%emt 0:00:03]} 99. Qb8+ {[%emt 0:00:05]} Kf6 {[%emt 0:00:03]} 100. Qf8+ {[%emt 0:00:02]} Kg5 {[%emt 0:00:02]} 101. Qg7+ {[%emt 0:00:04]} Kf4 {[%emt 0:00:02]} 102. Qc7+ {[%emt 0:00:02]} Qe5 {[%emt 0:00:02]} 103. Qc4+ {[%emt 0:00:03]} Qe4 {[%emt 0:00:28]} 104. Qc7+ {[%emt 0:00:01]} Ke3 {[%emt 0:00:14]} 105. Qc3+ {[%emt 0:00:15]} Qd3 {[%emt 0:00:06]} 106. Qe5+ {[%emt 0:00:01]} Kf3 {[%emt 0:00:06]} 107. Qg3+ {[%emt 0:00:11]} Ke4 {[%emt 0:00:01]} 108. Qg2+ {[%emt 0:00:02]} Kf4 {[%emt 0:00:05]} 109. Qf2+ {[%emt 0:00:06]} Kg5 {[%emt 0:00:04]} 110. Qc5 {[%emt 0:00:06]} Qd1+ {[%emt 0:00:04]} 111. Kg2 {[%emt 0:00:01]} Qf3+ {[%emt 0:00:03]} 112. Kg1 {[%emt 0:00:01]} Qd1+ {[%emt 0:00:18]} 113. Kg2 {[%emt 0:00:01]} Qd2+ {[%emt 0:00:01]} 114. Kg1 {[%emt 0:00:23]} Qe1+ {[%emt 0:00:01]} 115. Kg2 {[%emt 0:00:02]} Kh4 {[%emt 0:00:03]} 116. Qxf5 {[%emt 0:00:18]} Qe2+ {[%emt 0:00:03]} 1/2-1/2